[Event "Early-Titled-Tuesday-Blitz-September-12-2023"]
[Site "Chess.com"]
[Date "2023.09.12"]
[Round "4"]
[White "Herman-NY"]
[Black "CSB7"]
[Result "1-0"]
[WhiteElo "2551"]
[BlackElo "2711"]
[TimeControl "180+1"]
[EndTime "8:38:19 PDT"]
[Termination "Herman-NY won on time"]

1. e4 {[%clk 0:03:00.9]} 1... c5 {[%clk 0:02:59.7]} 2. Nf3 {[%clk 0:03:01.4]}
2... Nc6 {[%clk 0:03:00.3]} 3. d4 {[%clk 0:03:01.9]} 3... Nxd4 {[%clk
0:03:01.2]} 4. Nxd4 {[%clk 0:03:00.3]} 4... cxd4 {[%clk 0:03:02.1]} 5. Qxd4
{[%clk 0:03:00.9]} 5... d6 {[%clk 0:02:12.1]} 6. Nc3 {[%clk 0:03:00.4]} 6... Nf6
{[%clk 0:02:10.1]} 7. Bg5 {[%clk 0:02:58.5]} 7... a6 {[%clk 0:01:56.7]} 8. O-O-O
{[%clk 0:02:58.2]} 8... Qa5 {[%clk 0:01:52.6]} 9. f4 {[%clk 0:02:21.9]} 9... h6
{[%clk 0:01:47.3]} 10. Bxf6 {[%clk 0:01:43.1]} 10... gxf6 {[%clk 0:01:48.2]} 11.
Kb1 {[%clk 0:01:26]} 11... h5 {[%clk 0:01:31.6]} 12. Nd5 {[%clk 0:01:15.3]}
12... Be6 {[%clk 0:01:23.4]} 13. Bc4 {[%clk 0:01:08.6]} 13... Bh6 {[%clk
0:01:14.2]} 14. g3 {[%clk 0:00:54.1]} 14... Rc8 {[%clk 0:01:07.3]} 15. Bb3
{[%clk 0:00:48.7]} 15... Qc5 {[%clk 0:01:02.3]} 16. Qd3 {[%clk 0:00:47.2]} 16...
Kf8 {[%clk 0:00:59]} 17. Rhe1 {[%clk 0:00:38.9]} 17... Bg7 {[%clk 0:00:52.7]}
18. c3 {[%clk 0:00:25.5]} 18... h4 {[%clk 0:00:49.8]} 19. f5 {[%clk 0:00:20.1]}
19... Bxd5 {[%clk 0:00:48.3]} 20. Bxd5 {[%clk 0:00:21]} 20... b5 {[%clk
0:00:37.3]} 21. a3 {[%clk 0:00:20.4]} 21... Rb8 {[%clk 0:00:35.1]} 22. Rg1
{[%clk 0:00:17.1]} 22... h3 {[%clk 0:00:29.2]} 23. Rge1 {[%clk 0:00:14.6]} 23...
Bh6 {[%clk 0:00:27.5]} 24. Bb3 {[%clk 0:00:14.6]} 24... Bg5 {[%clk 0:00:25.4]}
25. Qf3 {[%clk 0:00:12.8]} 25... a5 {[%clk 0:00:20]} 26. Rd5 {[%clk 0:00:12.5]}
26... Qc7 {[%clk 0:00:19.1]} 27. Qd3 {[%clk 0:00:12.1]} 27... b4 {[%clk
0:00:18.4]} 28. cxb4 {[%clk 0:00:12.6]} 28... axb4 {[%clk 0:00:19.3]} 29. a4
{[%clk 0:00:13.4]} 29... Kg7 {[%clk 0:00:18.1]} 30. Ka2 {[%clk 0:00:07.2]} 30...
Rhc8 {[%clk 0:00:13.2]} 31. Rb5 {[%clk 0:00:06.3]} 31... Rxb5 {[%clk 0:00:09.4]}
32. Qxb5 {[%clk 0:00:07.2]} 32... Qc5 {[%clk 0:00:04]} 33. Qf1 {[%clk
0:00:05.5]} 33... Rh8 {[%clk 0:00:02.3]} 34. Qd3 {[%clk 0:00:05.3]} 34... Re8
{[%clk 0:00:01.4]} 35. Re2 {[%clk 0:00:05.8]} 35... Rc8 {[%clk 0:00:02]} 36. Rc2
{[%clk 0:00:05.7]} 1-0

[Event "Early-Titled-Tuesday-Blitz-September-12-2023"]
[Site "Chess.com"]
[Date "2023.09.12"]
[Round "4"]
[White "jaskol95"]
[Black "mmDarko"]
[Result "1-0"]
[WhiteElo "2539"]
[BlackElo "2206"]
[TimeControl "180+1"]
[EndTime "8:38:19 PDT"]
[Termination "jaskol95 won by checkmate"]

1. d4 {[%clk 0:03:00.9]} 1... Nf6 {[%clk 0:02:59.7]} 2. Nc3 {[%clk 0:03:00.9]}
2... d5 {[%clk 0:02:59.6]} 3. Bf4 {[%clk 0:03:00.9]} 3... e6 {[%clk 0:02:58.1]}
4. Nb5 {[%clk 0:03:00.3]} 4... Na6 {[%clk 0:02:58.1]} 5. e3 {[%clk 0:02:58.9]}
5... c6 {[%clk 0:02:57.3]} 6. Nc3 {[%clk 0:02:59.5]} 6... Nb8 {[%clk 0:02:55]}
7. Nf3 {[%clk 0:02:59.1]} 7... Bd6 {[%clk 0:02:53.5]} 8. Ne5 {[%clk 0:02:55.7]}
8... O-O {[%clk 0:02:52]} 9. Bd3 {[%clk 0:02:55.5]} 9... Qe7 {[%clk 0:02:51]}
10. Qf3 {[%clk 0:02:55.1]} 10... c5 {[%clk 0:02:44.3]} 11. dxc5 {[%clk
0:02:44.5]} 11... Bxc5 {[%clk 0:02:42.1]} 12. Qh3 {[%clk 0:02:44.8]} 12... Nbd7
{[%clk 0:02:22.5]} 13. Nxd7 {[%clk 0:02:34.5]} 13... Bxd7 {[%clk 0:02:07.1]} 14.
Bg5 {[%clk 0:02:24.8]} 14... h6 {[%clk 0:01:54.5]} 15. Bxh6 {[%clk 0:02:19.6]}
15... gxh6 {[%clk 0:01:52.8]} 16. Qxh6 {[%clk 0:02:20.5]} 16... Bb4 {[%clk
0:01:07.7]} 17. O-O {[%clk 0:02:14.9]} 17... Bxc3 {[%clk 0:01:03.7]} 18. bxc3
{[%clk 0:02:15.8]} 18... e5 {[%clk 0:01:02]} 19. e4 {[%clk 0:01:43.2]} 19...
Nxe4 {[%clk 0:00:45.2]} 20. f4 {[%clk 0:01:35.2]} 20... Qf6 {[%clk 0:00:19.6]}
21. Qh5 {[%clk 0:01:24]} 21... Qf5 {[%clk 0:00:14.8]} 22. Qh4 {[%clk 0:01:20.6]}
22... Qg4 {[%clk 0:00:11.1]} 23. Qh6 {[%clk 0:01:07.8]} 23... Qg6 {[%clk
0:00:07.4]} 24. Qh4 {[%clk 0:01:08.5]} 24... Qg4 {[%clk 0:00:07.5]} 25. Qe7
{[%clk 0:01:09.2]} 25... Rae8 {[%clk 0:00:06.8]} 26. Qb4 {[%clk 0:01:09.3]}
26... exf4 {[%clk 0:00:06.2]} 27. Qxb7 {[%clk 0:01:04.8]} 27... Be6 {[%clk
0:00:05.6]} 28. Bxe4 {[%clk 0:01:03]} 28... dxe4 {[%clk 0:00:05.4]} 29. Qxe4
{[%clk 0:01:03.9]} 29... Qg6 {[%clk 0:00:05.6]} 30. Qxf4 {[%clk 0:01:03.9]}
30... Rd8 {[%clk 0:00:05.2]} 31. Rf3 {[%clk 0:01:03.8]} 31... f5 {[%clk
0:00:03.1]} 32. Rg3 {[%clk 0:01:03.6]} 32... Kf7 {[%clk 0:00:03]} 33. Rxg6
{[%clk 0:01:03.7]} 33... Kxg6 {[%clk 0:00:03.9]} 34. Re1 {[%clk 0:01:03.4]}
34... Rfe8 {[%clk 0:00:03.1]} 35. h4 {[%clk 0:01:00.5]} 35... Kf6 {[%clk
0:00:01.9]} 36. Qg5+ {[%clk 0:01:00.1]} 36... Kf7 {[%clk 0:00:02.2]} 37. Qh5+
{[%clk 0:00:57.9]} 37... Kf6 {[%clk 0:00:02.2]} 38. Qh6+ {[%clk 0:00:58.5]}
38... Kf7 {[%clk 0:00:02.4]} 39. Qh7+ {[%clk 0:00:58.9]} 39... Kf6 {[%clk
0:00:02.8]} 40. h5 {[%clk 0:00:59.7]} 40... Rd7 {[%clk 0:00:02.1]} 41. Qg6+
{[%clk 0:00:55.5]} 41... Ke7 {[%clk 0:00:02.1]} 42. Rxe6+ {[%clk 0:00:55.7]}
42... Kd8 {[%clk 0:00:02.6]} 43. Qxe8+ {[%clk 0:00:56.6]} 43... Kc7 {[%clk
0:00:03]} 44. Qxd7+ {[%clk 0:00:57.2]} 44... Kxd7 {[%clk 0:00:03]} 45. Rf6
{[%clk 0:00:58.1]} 45... a5 {[%clk 0:00:02.8]} 46. Rxf5 {[%clk 0:00:59]} 46...
a4 {[%clk 0:00:03]} 47. Rf3 {[%clk 0:00:59.9]} 47... Ke6 {[%clk 0:00:02.3]} 48.
h6 {[%clk 0:01:00.8]} 48... Kd5 {[%clk 0:00:02.3]} 49. h7 {[%clk 0:01:01.7]}
49... Kc4 {[%clk 0:00:02.7]} 50. h8=Q {[%clk 0:01:02.6]} 50... a3 {[%clk
0:00:02.9]} 51. Qh6 {[%clk 0:01:03.5]} 51... Kd5 {[%clk 0:00:02.3]} 52. Rg3
{[%clk 0:01:04.4]} 52... Ke5 {[%clk 0:00:02]} 53. Qh4 {[%clk 0:01:02.7]} 53...
Kf5 {[%clk 0:00:01.9]} 54. Rg5+ {[%clk 0:01:03.5]} 54... Ke6 {[%clk 0:00:02.3]}
55. Qh6+ {[%clk 0:01:04.4]} 55... Kf7 {[%clk 0:00:02.7]} 56. Rg7+ {[%clk
0:01:05.3]} 56... Ke8 {[%clk 0:00:02.9]} 57. Qh8# {[%clk 0:01:06.2]} 1-0

[Event "Early-Titled-Tuesday-Blitz-September-12-2023"]
[Site "Chess.com"]
[Date "2023.09.12"]
[Round "4"]
[White "Der_Balak_3Halak"]
[Black "Roman_Ovetchkin"]
[Result "0-1"]
[WhiteElo "2416"]
[BlackElo "2638"]
[TimeControl "180+1"]
[EndTime "8:38:19 PDT"]
[Termination "Roman_Ovetchkin won on time"]

1. e4 {[%clk 0:03:00.9]} 1... c6 {[%clk 0:02:59.8]} 2. Nf3 {[%clk 0:02:59.3]}
2... d5 {[%clk 0:03:00.7]} 3. Nc3 {[%clk 0:02:59.4]} 3... dxe4 {[%clk
0:03:00.7]} 4. Nxe4 {[%clk 0:03:00.3]} 4... Nf6 {[%clk 0:03:00.7]} 5. Qe2 {[%clk
0:02:58.9]} 5... Nxe4 {[%clk 0:02:58.2]} 6. Qxe4 {[%clk 0:02:59.8]} 6... Nd7
{[%clk 0:02:57.7]} 7. Bc4 {[%clk 0:02:58.6]} 7... Nf6 {[%clk 0:02:58.2]} 8. Ne5
{[%clk 0:02:58.9]} 8... e6 {[%clk 0:02:58.5]} 9. Qe2 {[%clk 0:02:59.6]} 9... b5
{[%clk 0:02:58.7]} 10. Bb3 {[%clk 0:02:58.5]} 10... Qc7 {[%clk 0:02:51]} 11. d4
{[%clk 0:02:57.5]} 11... Bd6 {[%clk 0:02:50.7]} 12. O-O {[%clk 0:02:55.3]} 12...
O-O {[%clk 0:02:35.9]} 13. c3 {[%clk 0:02:51.6]} 13... Bb7 {[%clk 0:02:30]} 14.
Nd3 {[%clk 0:02:45.7]} 14... Bxh2+ {[%clk 0:02:23.3]} 15. Kh1 {[%clk 0:02:42.8]}
15... Bd6 {[%clk 0:02:23.8]} 16. Bc2 {[%clk 0:02:33.3]} 16... c5 {[%clk
0:02:18.4]} 17. dxc5 {[%clk 0:02:25.1]} 17... Bxc5 {[%clk 0:02:17.9]} 18. Nxc5
{[%clk 0:02:16.4]} 18... Qxc5 {[%clk 0:02:17.3]} 19. Be3 {[%clk 0:02:06.6]}
19... Qh5+ {[%clk 0:01:46.4]} 20. Qxh5 {[%clk 0:02:05]} 20... Nxh5 {[%clk
0:01:47.3]} 21. a4 {[%clk 0:01:51.8]} 21... a6 {[%clk 0:01:46]} 22. Rad1 {[%clk
0:01:44]} 22... Bd5 {[%clk 0:01:41.8]} 23. Bd3 {[%clk 0:01:29.7]} 23... bxa4
{[%clk 0:01:17.1]} 24. c4 {[%clk 0:01:08.9]} 24... Bc6 {[%clk 0:01:16.9]} 25.
Bc2 {[%clk 0:01:09.4]} 25... Rfd8 {[%clk 0:01:12]} 26. Ra1 {[%clk 0:00:56.8]}
26... Rdb8 {[%clk 0:01:03.6]} 27. Bxa4 {[%clk 0:00:26.5]} 27... Bxa4 {[%clk
0:01:02.3]} 28. Rxa4 {[%clk 0:00:27.4]} 28... Rxb2 {[%clk 0:01:02.4]} 29. Rfa1
{[%clk 0:00:26.5]} 29... Rc2 {[%clk 0:00:57.4]} 30. Rxa6 {[%clk 0:00:22.5]}
30... Rxa6 {[%clk 0:00:56.8]} 31. Rxa6 {[%clk 0:00:23.4]} 31... h6 {[%clk
0:00:57.2]} 32. c5 {[%clk 0:00:22.3]} 32... Nf6 {[%clk 0:00:56.6]} 33. Ra8+
{[%clk 0:00:13.7]} 33... Kh7 {[%clk 0:00:56.3]} 34. Ra7 {[%clk 0:00:13.3]} 34...
Kg6 {[%clk 0:00:56.4]} 35. Bd4 {[%clk 0:00:07.3]} 35... e5 {[%clk 0:00:52.6]}
36. Bxe5 {[%clk 0:00:05.4]} 36... Rc1+ {[%clk 0:00:52.7]} 37. Kh2 {[%clk
0:00:03.8]} 37... Ng4+ {[%clk 0:00:53.3]} 38. Kg3 {[%clk 0:00:04.5]} 38... Nxe5
{[%clk 0:00:54.2]} 39. Ra6+ {[%clk 0:00:04.1]} 39... f6 {[%clk 0:00:54.1]} 40.
Ra5 {[%clk 0:00:04.4]} 40... Kf5 {[%clk 0:00:52.1]} 41. f3 {[%clk 0:00:04.4]}
41... g5 {[%clk 0:00:51.9]} 42. Kf2 {[%clk 0:00:03.7]} 42... Rc2+ {[%clk
0:00:51.4]} 43. Ke3 {[%clk 0:00:03.7]} 43... Rxg2 {[%clk 0:00:49]} 44. c6 {[%clk
0:00:03]} 44... Rc2 {[%clk 0:00:49]} 45. f4 {[%clk 0:00:02.4]} 45... gxf4+
{[%clk 0:00:48]} 46. Kd4 {[%clk 0:00:03.3]} 46... Rxc6 {[%clk 0:00:47.3]} 47.
Kd5 {[%clk 0:00:02.8]} 47... Rc8 {[%clk 0:00:45.3]} 48. Ra6 {[%clk 0:00:02.3]}
48... f3 {[%clk 0:00:44.6]} 49. Kd6 {[%clk 0:00:01.6]} 49... Rc6+ {[%clk
0:00:44]} 0-1

[Event "Early-Titled-Tuesday-Blitz-September-12-2023"]
[Site "Chess.com"]
[Date "2023.09.12"]
[Round "4"]
[White "Eagle_2019"]
[Black "Tonychess32"]
[Result "1-0"]
[WhiteElo "2687"]
[BlackElo "2512"]
[TimeControl "180+1"]
[EndTime "8:38:20 PDT"]
[Termination "Eagle_2019 won on time"]

1. d4 {[%clk 0:01:18.1]} 1... Nf6 {[%clk 0:02:58.8]} 2. Nf3 {[%clk 0:01:18.3]}
2... e6 {[%clk 0:02:58.9]} 3. c4 {[%clk 0:01:18.3]} 3... d5 {[%clk 0:02:55.9]}
4. Nc3 {[%clk 0:01:17.8]} 4... Be7 {[%clk 0:02:52.8]} 5. cxd5 {[%clk 0:01:17.3]}
5... exd5 {[%clk 0:02:52.8]} 6. Qc2 {[%clk 0:01:17.6]} 6... c6 {[%clk
0:02:51.3]} 7. Bf4 {[%clk 0:01:18.1]} 7... O-O {[%clk 0:02:50.6]} 8. e3 {[%clk
0:01:18.6]} 8... Bd6 {[%clk 0:02:38.9]} 9. Bxd6 {[%clk 0:01:16]} 9... Qxd6
{[%clk 0:02:39]} 10. Bd3 {[%clk 0:01:15.7]} 10... Re8 {[%clk 0:02:39.3]} 11. O-O
{[%clk 0:01:15.3]} 11... Nbd7 {[%clk 0:02:39.3]} 12. Rab1 {[%clk 0:01:15.2]}
12... a5 {[%clk 0:02:38.6]} 13. a3 {[%clk 0:01:15.3]} 13... Nb6 {[%clk
0:02:35.2]} 14. Ne5 {[%clk 0:01:13.9]} 14... Rxe5 {[%clk 0:02:24.4]} 15. dxe5
{[%clk 0:01:13.8]} 15... Qxe5 {[%clk 0:02:25.3]} 16. Be2 {[%clk 0:01:02.8]}
16... Bf5 {[%clk 0:02:22.4]} 17. Bd3 {[%clk 0:01:01.4]} 17... Ng4 {[%clk
0:02:15.6]} 18. g3 {[%clk 0:00:59.7]} 18... Nxe3 {[%clk 0:01:41.7]} 19. fxe3
{[%clk 0:00:59.1]} 19... Qxe3+ {[%clk 0:01:41.7]} 20. Qf2 {[%clk 0:00:58]} 20...
Qxf2+ {[%clk 0:01:42]} 21. Rxf2 {[%clk 0:00:58.2]} 21... Bxd3 {[%clk 0:01:42.9]}
22. Re1 {[%clk 0:00:58.1]} 22... Kf8 {[%clk 0:01:35.5]} 23. b3 {[%clk
0:00:55.9]} 23... Rd8 {[%clk 0:01:23.8]} 24. Rd2 {[%clk 0:00:55.4]} 24... Bg6
{[%clk 0:01:22.7]} 25. Ne2 {[%clk 0:00:54.5]} 25... a4 {[%clk 0:01:14.5]} 26.
bxa4 {[%clk 0:00:52.3]} 26... Nxa4 {[%clk 0:01:13]} 27. Nd4 {[%clk 0:00:50.2]}
27... c5 {[%clk 0:01:05.3]} 28. Nb5 {[%clk 0:00:46]} 28... d4 {[%clk 0:01:05.5]}
29. g4 {[%clk 0:00:40.2]} 29... h6 {[%clk 0:01:02.5]} 30. h4 {[%clk 0:00:39.5]}
30... h5 {[%clk 0:01:01.2]} 31. g5 {[%clk 0:00:38.1]} 31... Nb6 {[%clk
0:00:57.3]} 32. Kf2 {[%clk 0:00:33]} 32... Nd5 {[%clk 0:00:51.7]} 33. Re5 {[%clk
0:00:31.3]} 33... Ne3 {[%clk 0:00:39.6]} 34. Rxc5 {[%clk 0:00:29.4]} 34... Nf5
{[%clk 0:00:32.5]} 35. a4 {[%clk 0:00:29.1]} 35... f6 {[%clk 0:00:14.4]} 36.
gxf6 {[%clk 0:00:28.4]} 36... gxf6 {[%clk 0:00:15.3]} 37. a5 {[%clk 0:00:27.8]}
37... Ra8 {[%clk 0:00:11.1]} 38. Nc7 {[%clk 0:00:26.7]} 38... Ra7 {[%clk
0:00:05.7]} 39. Ne6+ {[%clk 0:00:26.4]} 39... Kf7 {[%clk 0:00:06.2]} 40. Nxd4
{[%clk 0:00:26.3]} 40... Nxh4 {[%clk 0:00:05.8]} 41. Kg3 {[%clk 0:00:24.6]} 1-0

[Event "Early-Titled-Tuesday-Blitz-September-12-2023"]
[Site "Chess.com"]
[Date "2023.09.12"]
[Round "4"]
[White "HanSchut"]
[Black "BatboldNyamsuren0919"]
[Result "0-1"]
[WhiteElo "2258"]
[BlackElo "2489"]
[TimeControl "180+1"]
[EndTime "8:38:20 PDT"]
[Termination "BatboldNyamsuren0919 won on time"]

1. e4 {[%clk 0:03:00]} 1... c5 {[%clk 0:02:59.4]} 2. Nf3 {[%clk 0:03:00.4]} 2...
Nc6 {[%clk 0:02:56.8]} 3. d4 {[%clk 0:03:00.4]} 3... cxd4 {[%clk 0:02:57.7]} 4.
Nxd4 {[%clk 0:03:00.9]} 4... Nf6 {[%clk 0:02:58.4]} 5. Nc3 {[%clk 0:03:01.3]}
5... g6 {[%clk 0:02:58.6]} 6. Be3 {[%clk 0:02:55]} 6... Bg7 {[%clk 0:02:57.8]}
7. f3 {[%clk 0:02:50.7]} 7... O-O {[%clk 0:02:57.2]} 8. Bc4 {[%clk 0:02:51.3]}
8... Qb6 {[%clk 0:02:55.5]} 9. Qd2 {[%clk 0:02:26.4]} 9... Qxb2 {[%clk
0:02:32.2]} 10. Rb1 {[%clk 0:02:04.2]} 10... Qa3 {[%clk 0:02:30.1]} 11. O-O
{[%clk 0:01:56.1]} 11... Qc5 {[%clk 0:02:07]} 12. Nxc6 {[%clk 0:01:45.8]} 12...
Qxc6 {[%clk 0:02:03]} 13. Bb5 {[%clk 0:01:40.9]} 13... Qc7 {[%clk 0:02:01.6]}
14. Bd4 {[%clk 0:01:20]} 14... a6 {[%clk 0:01:56.7]} 15. e5 {[%clk 0:01:17]}
15... axb5 {[%clk 0:01:26.5]} 16. exf6 {[%clk 0:01:17.3]} 16... exf6 {[%clk
0:01:24.6]} 17. Rxb5 {[%clk 0:00:46]} 17... d6 {[%clk 0:01:13.6]} 18. Rfb1
{[%clk 0:00:44]} 18... Be6 {[%clk 0:00:56.6]} 19. Rxb7 {[%clk 0:00:40.6]} 19...
Qc4 {[%clk 0:00:53.5]} 20. R1b4 {[%clk 0:00:32.6]} 20... Qc6 {[%clk 0:00:50.1]}
21. a4 {[%clk 0:00:32.2]} 21... Rfe8 {[%clk 0:00:40.2]} 22. R7b6 {[%clk
0:00:31.9]} 22... Qc8 {[%clk 0:00:38.3]} 23. Rxd6 {[%clk 0:00:23.4]} 23... Bf8
{[%clk 0:00:34.2]} 24. Nb5 {[%clk 0:00:20.6]} 24... Rd8 {[%clk 0:00:13]} 25.
Rxd8 {[%clk 0:00:16.5]} 25... Qxd8 {[%clk 0:00:13.9]} 26. Rb2 {[%clk 0:00:12.2]}
26... Rxa4 {[%clk 0:00:13.3]} 27. c3 {[%clk 0:00:09.5]} 27... Bc4 {[%clk
0:00:12.1]} 28. Qf4 {[%clk 0:00:04.3]} 28... Ra1+ {[%clk 0:00:09.3]} 29. Kf2
{[%clk 0:00:04.5]} 29... Rf1+ {[%clk 0:00:09.7]} 30. Kg3 {[%clk 0:00:04.4]}
30... Bxb5 {[%clk 0:00:09.9]} 0-1

[Event "Early-Titled-Tuesday-Blitz-September-12-2023"]
[Site "Chess.com"]
[Date "2023.09.12"]
[Round "4"]
[White "Ermito2020"]
[Black "KNVB"]
[Result "1-0"]
[WhiteElo "2598"]
[BlackElo "2750"]
[TimeControl "180+1"]
[EndTime "8:38:21 PDT"]
[Termination "Ermito2020 won by checkmate"]

1. e4 {[%clk 0:03:00.9]} 1... b6 {[%clk 0:02:59.5]} 2. d4 {[%clk 0:02:59.7]}
2... Bb7 {[%clk 0:02:59.7]} 3. Nc3 {[%clk 0:03:00.2]} 3... e6 {[%clk 0:02:59.9]}
4. Bd3 {[%clk 0:02:56.7]} 4... Nf6 {[%clk 0:02:55.7]} 5. Nf3 {[%clk 0:02:48.7]}
5... Bb4 {[%clk 0:02:55.6]} 6. Qe2 {[%clk 0:02:43.9]} 6... d5 {[%clk 0:02:55.3]}
7. e5 {[%clk 0:02:36.8]} 7... Ne4 {[%clk 0:02:55.1]} 8. Bd2 {[%clk 0:02:37.4]}
8... Bxc3 {[%clk 0:02:55.2]} 9. bxc3 {[%clk 0:02:36.7]} 9... Nc6 {[%clk
0:02:55.5]} 10. O-O {[%clk 0:02:28.9]} 10... h6 {[%clk 0:02:53.7]} 11. c4 {[%clk
0:02:14]} 11... Nxd2 {[%clk 0:02:52.4]} 12. Qxd2 {[%clk 0:02:13.1]} 12... dxc4
{[%clk 0:02:52.4]} 13. Bxc4 {[%clk 0:02:14]} 13... Qd7 {[%clk 0:02:51.7]} 14.
Rfd1 {[%clk 0:02:09.2]} 14... Ne7 {[%clk 0:02:48.7]} 15. Be2 {[%clk 0:02:06]}
15... O-O {[%clk 0:02:47.8]} 16. c3 {[%clk 0:01:55.2]} 16... Rfd8 {[%clk
0:02:43.9]} 17. Rac1 {[%clk 0:01:42.5]} 17... Qa4 {[%clk 0:02:24.4]} 18. Qb2
{[%clk 0:01:39.2]} 18... Rac8 {[%clk 0:02:18.3]} 19. Qb3 {[%clk 0:01:34.2]}
19... Qe8 {[%clk 0:02:05.3]} 20. Qa3 {[%clk 0:01:24.2]} 20... a6 {[%clk
0:01:48.3]} 21. Nd2 {[%clk 0:01:22.4]} 21... Nd5 {[%clk 0:01:33.6]} 22. Bf3
{[%clk 0:01:21.2]} 22... Rb8 {[%clk 0:01:28.6]} 23. c4 {[%clk 0:01:07.8]} 23...
Nf4 {[%clk 0:01:28.8]} 24. Qe3 {[%clk 0:01:07.7]} 24... Bxf3 {[%clk 0:01:12.7]}
25. Nxf3 {[%clk 0:01:06.4]} 25... Ng6 {[%clk 0:01:13.6]} 26. d5 {[%clk
0:01:03.8]} 26... Ne7 {[%clk 0:01:09.1]} 27. Qe4 {[%clk 0:00:49.6]} 27... Qa4
{[%clk 0:01:09.2]} 28. d6 {[%clk 0:00:40.4]} 28... cxd6 {[%clk 0:01:08.4]} 29.
exd6 {[%clk 0:00:41.3]} 29... Nf5 {[%clk 0:01:09]} 30. Qf4 {[%clk 0:00:33.3]}
30... Qa3 {[%clk 0:00:36.6]} 31. d7 {[%clk 0:00:29]} 31... Rb7 {[%clk
0:00:35.2]} 32. g4 {[%clk 0:00:15.3]} 32... Ne7 {[%clk 0:00:35.4]} 33. c5 {[%clk
0:00:15.5]} 33... bxc5 {[%clk 0:00:29.8]} 34. Rb1 {[%clk 0:00:15.5]} 34... Rbxd7
{[%clk 0:00:17.4]} 35. Rxd7 {[%clk 0:00:14.6]} 35... Rxd7 {[%clk 0:00:18.3]} 36.
Rb8+ {[%clk 0:00:14.4]} 36... Kh7 {[%clk 0:00:18.8]} 37. Qxf7 {[%clk 0:00:14.6]}
37... Qd3 {[%clk 0:00:05.8]} 38. Ng5+ {[%clk 0:00:13.8]} 38... hxg5 {[%clk
0:00:04.8]} 39. Qh5# {[%clk 0:00:14.7]} 1-0

[Event "Early-Titled-Tuesday-Blitz-September-12-2023"]
[Site "Chess.com"]
[Date "2023.09.12"]
[Round "4"]
[White "Evgeny81"]
[Black "aghasiyevkamal"]
[Result "0-1"]
[WhiteElo "2739"]
[BlackElo "2563"]
[TimeControl "180+1"]
[EndTime "8:38:22 PDT"]
[Termination "aghasiyevkamal won by resignation"]

1. e4 {[%clk 0:02:56.9]} 1... e5 {[%clk 0:02:57.4]} 2. Nf3 {[%clk 0:02:56.1]}
2... Nc6 {[%clk 0:02:57.3]} 3. Bb5 {[%clk 0:02:56.6]} 3... a6 {[%clk 0:02:57.2]}
4. Ba4 {[%clk 0:02:57.1]} 4... Nf6 {[%clk 0:02:56.9]} 5. O-O {[%clk 0:02:57.5]}
5... b5 {[%clk 0:02:55.9]} 6. Bb3 {[%clk 0:02:57.6]} 6... Bc5 {[%clk 0:02:53.7]}
7. c3 {[%clk 0:02:56.4]} 7... d6 {[%clk 0:02:53.3]} 8. d4 {[%clk 0:02:56.6]}
8... Bb6 {[%clk 0:02:53.1]} 9. Bg5 {[%clk 0:02:56.7]} 9... h6 {[%clk 0:02:46.7]}
10. Bxf6 {[%clk 0:02:52.7]} 10... Qxf6 {[%clk 0:02:45.7]} 11. Bd5 {[%clk
0:02:52.9]} 11... Bd7 {[%clk 0:02:25.2]} 12. a4 {[%clk 0:02:42.2]} 12... Rb8
{[%clk 0:02:23.6]} 13. axb5 {[%clk 0:02:41.5]} 13... axb5 {[%clk 0:02:23.2]} 14.
dxe5 {[%clk 0:02:29.3]} 14... Nxe5 {[%clk 0:02:12.8]} 15. Nxe5 {[%clk
0:02:26.8]} 15... dxe5 {[%clk 0:02:11.7]} 16. Nd2 {[%clk 0:02:21.2]} 16... O-O
{[%clk 0:02:03.8]} 17. Qf3 {[%clk 0:02:21.2]} 17... Qe7 {[%clk 0:01:45]} 18.
Rfd1 {[%clk 0:02:09.8]} 18... c6 {[%clk 0:01:41.2]} 19. Bb3 {[%clk 0:02:09.7]}
19... Be6 {[%clk 0:01:39.8]} 20. Bxe6 {[%clk 0:02:02]} 20... fxe6 {[%clk
0:01:36.6]} 21. Qg4 {[%clk 0:01:58.6]} 21... Rxf2 {[%clk 0:01:24.9]} 22. Kh1
{[%clk 0:01:58.8]} 22... Rf4 {[%clk 0:01:20.6]} 23. Qe2 {[%clk 0:01:51.8]} 23...
Rbf8 {[%clk 0:00:56.9]} 24. Nf3 {[%clk 0:01:50.4]} 24... g5 {[%clk 0:00:54.9]}
25. Nxe5 {[%clk 0:01:46.5]} 25... Qc7 {[%clk 0:00:19.4]} 26. Ng6 {[%clk
0:01:31.7]} 26... Rf2 {[%clk 0:00:19]} 27. Qh5 {[%clk 0:01:29.4]} 27... Qf7
{[%clk 0:00:17.8]} 28. h3 {[%clk 0:00:42.6]} 28... Kg7 {[%clk 0:00:17.6]} 29.
Qg4 {[%clk 0:00:11.9]} 29... Qxg6 {[%clk 0:00:17]} 30. Qg3 {[%clk 0:00:05.6]}
30... Qf6 {[%clk 0:00:15.1]} 31. e5 {[%clk 0:00:03.6]} 31... Rf1+ {[%clk
0:00:13.2]} 32. Rxf1 {[%clk 0:00:03.1]} 32... Qxf1+ {[%clk 0:00:13.4]} 33. Rxf1
{[%clk 0:00:02.8]} 33... Rxf1+ {[%clk 0:00:13.8]} 34. Kh2 {[%clk 0:00:03.4]}
34... Bg1+ {[%clk 0:00:14.3]} 35. Kh1 {[%clk 0:00:03.9]} 35... Bf2+ {[%clk
0:00:14.8]} 36. Kh2 {[%clk 0:00:04.5]} 36... Bxg3+ {[%clk 0:00:15.7]} 37. Kxg3
{[%clk 0:00:05]} 37... Rb1 {[%clk 0:00:16.4]} 0-1